[Event "Live Chess"]
[Site "Chess.com"]
[Date "2023.05.21"]
[Round "-"]
[White "Nazarenko_vital"]
[Black "Hacker_2009"]
[Result "1-0"]
[WhiteElo "1640"]
[BlackElo "1928"]
[TimeControl "300"]
[EndTime "23:00:53 PDT"]
[Termination "Nazarenko_vital won by resignation"]

1. e4 {[%clk 0:04:56.1]} 1... c5 {[%clk 0:04:57.5]} 2. c3 {[%clk 0:04:54.8]}
2... d5 {[%clk 0:04:54.4]} 3. e5 {[%clk 0:04:53]} 3... e6 {[%clk 0:04:52.9]} 4.
d4 {[%clk 0:04:51.9]} 4... Nc6 {[%clk 0:04:50.9]} 5. Nf3 {[%clk 0:04:50.4]} 5...
Qb6 {[%clk 0:04:44.6]} 6. Be2 {[%clk 0:04:38.7]} 6... Bd7 {[%clk 0:04:41.2]} 7.
O-O {[%clk 0:04:31.7]} 7... Nge7 {[%clk 0:04:35.7]} 8. a3 {[%clk 0:04:27.2]}
8... Nf5 {[%clk 0:04:34.1]} 9. b4 {[%clk 0:04:26.2]} 9... cxd4 {[%clk
0:04:32.4]} 10. cxd4 {[%clk 0:04:21.9]} 10... Ncxd4 {[%clk 0:04:30.3]} 11. Nxd4
{[%clk 0:04:16.8]} 11... Qxd4 {[%clk 0:04:28.1]} 12. Qxd4 {[%clk 0:04:07.6]}
12... Nxd4 {[%clk 0:04:26.7]} 13. Bd1 {[%clk 0:04:00.5]} 13... Be7 {[%clk
0:04:21.1]} 14. Be3 {[%clk 0:03:59.4]} 14... Nc6 {[%clk 0:04:19.3]} 15. b5
{[%clk 0:03:36.4]} 15... Nxe5 {[%clk 0:04:16.4]} 16. a4 {[%clk 0:03:32.9]} 16...
Nc4 {[%clk 0:04:14.1]} 17. Bd4 {[%clk 0:03:26.1]} 17... Bf6 {[%clk 0:04:11.8]}
18. Bxf6 {[%clk 0:03:20.5]} 18... gxf6 {[%clk 0:04:11.5]} 19. Na3 {[%clk
0:03:09.7]} 19... Rc8 {[%clk 0:04:10]} 20. Nxc4 {[%clk 0:03:05.3]} 20... Rxc4
{[%clk 0:04:09.9]} 21. Bf3 {[%clk 0:02:59.6]} 21... Rg8 {[%clk 0:04:02.9]} 22.
Rfe1 {[%clk 0:02:52.2]} 22... Kf8 {[%clk 0:03:57.6]} 23. g3 {[%clk 0:02:28.7]}
23... Kg7 {[%clk 0:03:55.8]} 24. Be2 {[%clk 0:02:03.5]} 24... Rc3 {[%clk
0:03:50.1]} 25. b6 {[%clk 0:01:59.5]} 25... a6 {[%clk 0:03:41.2]} 26. Rec1
{[%clk 0:01:56.6]} 26... Rgc8 {[%clk 0:03:38.1]} 27. Rxc3 {[%clk 0:01:55.5]}
27... Rxc3 {[%clk 0:03:38]} 28. Kf1 {[%clk 0:01:51.9]} 28... e5 {[%clk
0:03:35.7]} 29. a5 {[%clk 0:01:49.2]} 29... d4 {[%clk 0:03:33.9]} 30. Ke1 {[%clk
0:01:48.3]} 30... d3 {[%clk 0:03:23.5]} 31. Kd2 {[%clk 0:01:45.4]} 31... Rb3
{[%clk 0:03:21.2]} 32. Bxd3 {[%clk 0:01:42.7]} 32... Bc6 {[%clk 0:03:12.7]} 33.
Rc1 {[%clk 0:01:39.5]} 33... Ra3 {[%clk 0:03:06.4]} 34. Rxc6 {[%clk 0:01:35.7]}
34... bxc6 {[%clk 0:02:53.5]} 35. Bc4 {[%clk 0:01:33.3]} 35... Ra1 {[%clk
0:02:42.2]} 36. Kc2 {[%clk 0:01:30.4]} 36... Ra4 {[%clk 0:02:29.1]} 37. Kb3
{[%clk 0:01:27.3]} 37... Ra1 {[%clk 0:02:25.3]} 38. Kb4 {[%clk 0:01:24.6]} 38...
Kf8 {[%clk 0:02:20.3]} 39. b7 {[%clk 0:01:22]} 39... Rb1+ {[%clk 0:02:11.5]} 40.
Bb3 {[%clk 0:01:19.3]} 40... c5+ {[%clk 0:02:10.5]} 41. Kc4 {[%clk 0:01:18.1]}
41... Rc1+ {[%clk 0:02:06.7]} 42. Kd5 {[%clk 0:01:15.6]} 1-0

[Event "Live Chess"]
[Site "Chess.com"]
[Date "2023.05.21"]
[Round "-"]
[White "Conradical12"]
[Black "jbooth"]
[Result "0-1"]
[WhiteElo "1620"]
[BlackElo "1725"]
[TimeControl "300"]
[EndTime "23:00:59 PDT"]
[Termination "jbooth won by resignation"]

1. e4 {[%clk 0:04:56.8]} 1... d6 {[%clk 0:04:57.5]} 2. d4 {[%clk 0:04:54.2]}
2... Nf6 {[%clk 0:04:56]} 3. Nc3 {[%clk 0:04:51.9]} 3... Nbd7 {[%clk 0:04:54.8]}
4. Bc4 {[%clk 0:04:39.6]} 4... e5 {[%clk 0:04:52.8]} 5. Nf3 {[%clk 0:04:36.7]}
5... Be7 {[%clk 0:04:51.6]} 6. O-O {[%clk 0:04:33.9]} 6... c6 {[%clk 0:04:50.3]}
7. Be3 {[%clk 0:04:29.8]} 7... Qc7 {[%clk 0:04:49]} 8. Qd3 {[%clk 0:04:21.6]}
8... h6 {[%clk 0:04:47.3]} 9. dxe5 {[%clk 0:04:18.5]} 9... dxe5 {[%clk 0:04:45]}
10. Rad1 {[%clk 0:04:16.7]} 10... O-O {[%clk 0:04:36.5]} 11. Ne2 {[%clk
0:04:13.1]} 11... Ng4 {[%clk 0:04:27.3]} 12. h3 {[%clk 0:04:02.1]} 12... Nxe3
{[%clk 0:04:25]} 13. fxe3 {[%clk 0:03:58.5]} 13... Nb6 {[%clk 0:04:23.9]} 14.
Bb3 {[%clk 0:03:56.1]} 14... Bd7 {[%clk 0:04:13]} 15. a4 {[%clk 0:03:51.4]}
15... Rad8 {[%clk 0:04:11.5]} 16. Qc3 {[%clk 0:03:45.7]} 16... Kh7 {[%clk
0:03:56.2]} 17. a5 {[%clk 0:03:37.2]} 17... Nc8 {[%clk 0:03:53.7]} 18. Qxe5
{[%clk 0:03:29.3]} 18... Bd6 {[%clk 0:03:48.9]} 19. Qh5 {[%clk 0:03:04.1]} 19...
g6 {[%clk 0:03:42.6]} 20. Qh4 {[%clk 0:02:58.5]} 20... Be7 {[%clk 0:03:30.6]}
21. Qf2 {[%clk 0:02:50.3]} 21... Be6 {[%clk 0:03:24]} 22. Bxe6 {[%clk 0:02:45]}
22... fxe6 {[%clk 0:03:22.8]} 23. Rxd8 {[%clk 0:02:40]} 23... Bxd8 {[%clk
0:03:19.3]} 24. Qe1 {[%clk 0:02:37]} 24... Qxa5 {[%clk 0:03:16.9]} 25. b4 {[%clk
0:02:32.1]} 25... Qb6 {[%clk 0:03:05.6]} 26. Qc3 {[%clk 0:02:26]} 26... Bf6
{[%clk 0:02:59.2]} 27. e5 {[%clk 0:02:19.6]} 27... Bg7 {[%clk 0:02:57.8]} 28.
Nf4 {[%clk 0:02:15.2]} 28... Rxf4 {[%clk 0:02:46.9]} 29. Nd4 {[%clk 0:02:08.4]}
29... Rxf1+ {[%clk 0:02:42.4]} 30. Kxf1 {[%clk 0:02:07.8]} 30... c5 {[%clk
0:02:35.7]} 0-1

[Event "Live Chess"]
[Site "Chess.com"]
[Date "2023.05.21"]
[Round "-"]
[White "Shepherds_Pie"]
[Black "Jo1ts"]
[Result "1-0"]
[WhiteElo "1904"]
[BlackElo "822"]
[TimeControl "300"]
[EndTime "23:01:39 PDT"]
[Termination "Shepherds_Pie won by resignation"]

1. c4 {[%clk 0:04:56.6]} 1... e5 {[%clk 0:04:57.4]} 2. Nc3 {[%clk 0:04:55.3]}
2... Nf6 {[%clk 0:04:54.7]} 3. Nf3 {[%clk 0:04:54.3]} 3... Nc6 {[%clk
0:04:52.3]} 4. e3 {[%clk 0:04:53.3]} 4... d5 {[%clk 0:04:48.1]} 5. cxd5 {[%clk
0:04:51.7]} 5... Nxd5 {[%clk 0:04:46.3]} 6. Bb5 {[%clk 0:04:50.3]} 6... Nxc3
{[%clk 0:04:34.8]} 7. bxc3 {[%clk 0:04:47.9]} 7... Bd7 {[%clk 0:04:31.1]} 8.
Bxc6 {[%clk 0:04:45.6]} 8... Bxc6 {[%clk 0:04:26.5]} 9. d4 {[%clk 0:04:44.3]}
9... e4 {[%clk 0:04:20.7]} 10. Ne5 {[%clk 0:04:42.2]} 10... Bd5 {[%clk
0:04:12.4]} 11. c4 {[%clk 0:04:40.4]} 11... Be6 {[%clk 0:04:07.1]} 12. Qa4+
{[%clk 0:04:36.4]} 12... Bd7 {[%clk 0:04:02.9]} 13. Nxd7 {[%clk 0:04:35.1]}
13... Qxd7 {[%clk 0:04:01.8]} 14. Qb3 {[%clk 0:04:32.9]} 14... Rd8 {[%clk
0:04:01.1]} 15. O-O {[%clk 0:04:30.9]} 15... Bd6 {[%clk 0:03:52.1]} 16. Qxb7
{[%clk 0:04:25.5]} 16... O-O {[%clk 0:03:48.2]} 17. Qxe4 {[%clk 0:04:21]} 17...
Qe7 {[%clk 0:03:31.2]} 18. Qf3 {[%clk 0:04:15.9]} 18... Qh4 {[%clk 0:03:21.8]}
19. g3 {[%clk 0:04:13.8]} 19... Qh3 {[%clk 0:03:18.6]} 20. a4 {[%clk 0:04:07.4]}
20... Rfe8 {[%clk 0:03:13.8]} 21. d5 {[%clk 0:04:03.3]} 21... Re5 {[%clk
0:03:10.9]} 22. Bb2 {[%clk 0:04:00.2]} 22... Rh5 {[%clk 0:03:06]} 23. Qg2 {[%clk
0:03:58.8]} 23... Qxg2+ {[%clk 0:03:01.5]} 24. Kxg2 {[%clk 0:03:57.2]} 24... Be5
{[%clk 0:02:51.2]} 25. Bxe5 {[%clk 0:03:53.1]} 25... Rxe5 {[%clk 0:02:51.1]} 26.
Rab1 {[%clk 0:03:51.3]} 26... Re4 {[%clk 0:02:48.1]} 27. Rfc1 {[%clk 0:03:49.9]}
27... Rd6 {[%clk 0:02:42.4]} 28. Rb8+ {[%clk 0:03:46.4]} 1-0

[Event "Live Chess"]
[Site "Chess.com"]
[Date "2023.05.21"]
[Round "-"]
[White "tpm07"]
[Black "Supertromp"]
[Result "0-1"]
[WhiteElo "1911"]
[BlackElo "2154"]
[TimeControl "300"]
[EndTime "23:01:52 PDT"]
[Termination "Supertromp won by resignation"]

1. d4 {[%clk 0:04:56.1]} 1... Nf6 {[%clk 0:04:58.8]} 2. c4 {[%clk 0:04:53.7]}
2... g6 {[%clk 0:04:58.1]} 3. Nc3 {[%clk 0:04:51.6]} 3... Bg7 {[%clk 0:04:57.7]}
4. e4 {[%clk 0:04:50.3]} 4... d6 {[%clk 0:04:57.2]} 5. Be2 {[%clk 0:04:49.6]}
5... O-O {[%clk 0:04:56.5]} 6. Bg5 {[%clk 0:04:49]} 6... h6 {[%clk 0:04:52.6]}
7. Be3 {[%clk 0:04:46.3]} 7... e5 {[%clk 0:04:51.6]} 8. d5 {[%clk 0:04:44.3]}
8... a5 {[%clk 0:04:49.7]} 9. f3 {[%clk 0:04:38.5]} 9... Na6 {[%clk 0:04:48.7]}
10. g4 {[%clk 0:04:35.1]} 10... c6 {[%clk 0:04:45.1]} 11. Qd2 {[%clk 0:04:33.5]}
11... Kh7 {[%clk 0:04:41.5]} 12. h4 {[%clk 0:04:31.6]} 12... cxd5 {[%clk
0:04:38.3]} 13. cxd5 {[%clk 0:04:28.6]} 13... Bd7 {[%clk 0:04:32.9]} 14. g5
{[%clk 0:04:24.4]} 14... Nh5 {[%clk 0:04:32.1]} 15. gxh6 {[%clk 0:04:23.2]}
15... Bf6 {[%clk 0:04:31.2]} 16. Bg5 {[%clk 0:04:10.8]} 16... b5 {[%clk
0:04:14]} 17. Nh3 {[%clk 0:04:03.3]} 17... b4 {[%clk 0:04:11.5]} 18. Nd1 {[%clk
0:03:59.5]} 18... Bxh3 {[%clk 0:04:05.1]} 19. Rxh3 {[%clk 0:03:56.9]} 19... Qd7
{[%clk 0:03:48.1]} 20. Nf2 {[%clk 0:03:54.3]} 20... Bxg5 {[%clk 0:03:40.9]} 21.
hxg5 {[%clk 0:03:51.5]} 21... Nf4 {[%clk 0:03:38.8]} 22. Ng4 {[%clk 0:03:44.3]}
22... Kh8 {[%clk 0:03:33]} 23. Rh2 {[%clk 0:03:35.5]} 23... Nc5 {[%clk
0:03:28.4]} 24. Ne3 {[%clk 0:03:19.5]} 24... Qe7 {[%clk 0:02:58.3]} 25. O-O-O
{[%clk 0:03:08]} 25... a4 {[%clk 0:02:51.7]} 26. Nf5 {[%clk 0:02:52.2]} 26...
gxf5 {[%clk 0:02:48.8]} 27. exf5 {[%clk 0:02:51.6]} 27... Qxg5 {[%clk
0:02:42.2]} 28. Rhh1 {[%clk 0:02:48.2]} 28... Nxe2+ {[%clk 0:02:40.6]} 0-1

[Event "Live Chess"]
[Site "Chess.com"]
[Date "2023.05.21"]
[Round "-"]
[White "YrrriKharkiv"]
[Black "martinsmartin63"]
[Result "1-0"]
[WhiteElo "2014"]
[BlackElo "762"]
[TimeControl "300"]
[EndTime "23:02:22 PDT"]
[Termination "YrrriKharkiv won by resignation"]

1. d4 {[%clk 0:04:54.6]} 1... d5 {[%clk 0:04:57]} 2. c4 {[%clk 0:04:53.2]} 2...
e6 {[%clk 0:04:54.8]} 3. Nc3 {[%clk 0:04:51.5]} 3... Nf6 {[%clk 0:04:52]} 4. Bg5
{[%clk 0:04:50.1]} 4... Be7 {[%clk 0:04:49.6]} 5. Qc2 {[%clk 0:04:48.8]} 5...
Nbd7 {[%clk 0:04:43.8]} 6. Nf3 {[%clk 0:04:46.2]} 6... c6 {[%clk 0:04:41.6]} 7.
e3 {[%clk 0:04:43]} 7... Bb4 {[%clk 0:04:39.3]} 8. Bd3 {[%clk 0:04:39.2]} 8...
Bxc3+ {[%clk 0:04:34.9]} 9. Qxc3 {[%clk 0:04:33.9]} 9... Qc7 {[%clk 0:04:31.5]}
10. O-O {[%clk 0:04:07.3]} 10... Ne4 {[%clk 0:04:26.9]} 11. Bxe4 {[%clk
0:04:01.7]} 11... dxe4 {[%clk 0:04:23.8]} 12. Nd2 {[%clk 0:04:00.4]} 12... Nf6
{[%clk 0:04:19.9]} 13. Bxf6 {[%clk 0:03:57.3]} 13... gxf6 {[%clk 0:04:17.1]} 14.
Nxe4 {[%clk 0:03:56.9]} 14... f5 {[%clk 0:04:13.6]} 15. d5 {[%clk 0:03:47]}
15... fxe4 {[%clk 0:04:10]} 16. Qxh8+ {[%clk 0:03:45.3]} 16... Ke7 {[%clk
0:04:06.5]} 17. d6+ {[%clk 0:03:27.9]} 17... Qxd6 {[%clk 0:04:03.6]} 18. Qxh7
{[%clk 0:03:22.8]} 18... Bd7 {[%clk 0:03:54.9]} 19. Qxe4 {[%clk 0:03:20.2]}
19... Rh8 {[%clk 0:03:37.1]} 20. g3 {[%clk 0:03:16.7]} 20... Qc5 {[%clk
0:03:27.9]} 21. Rad1 {[%clk 0:03:01.3]} 21... Qh5 {[%clk 0:03:22.5]} 22. h4
{[%clk 0:03:00]} 22... Qf5 {[%clk 0:03:10.4]} 23. Qxf5 {[%clk 0:02:57.9]} 23...
exf5 {[%clk 0:03:07.5]} 24. Rd2 {[%clk 0:02:51.8]} 24... f4 {[%clk 0:03:02.6]}
25. exf4 {[%clk 0:02:49.8]} 25... Rh6 {[%clk 0:02:54.8]} 26. Re1+ {[%clk
0:02:48.4]} 26... Kf8 {[%clk 0:02:50.8]} 27. Rxd7 {[%clk 0:02:46.5]} 1-0

[Event "Live Chess"]
[Site "Chess.com"]
[Date "2023.05.21"]
[Round "-"]
[White "chessfiction"]
[Black "Hacker_2009"]
[Result "1-0"]
[WhiteElo "2349"]
[BlackElo "1927"]
[TimeControl "300"]
[EndTime "23:02:32 PDT"]
[Termination "chessfiction won by resignation"]

1. e4 {[%clk 0:04:58.6]} 1... c5 {[%clk 0:04:57.4]} 2. Nf3 {[%clk 0:04:58]} 2...
d6 {[%clk 0:04:55.8]} 3. d4 {[%clk 0:04:57.9]} 3... cxd4 {[%clk 0:04:55]} 4.
Nxd4 {[%clk 0:04:57.8]} 4... Nf6 {[%clk 0:04:54.8]} 5. Nc3 {[%clk 0:04:57.1]}
5... a6 {[%clk 0:04:54.5]} 6. f4 {[%clk 0:04:55.6]} 6... e6 {[%clk 0:04:53.9]}
7. Bd3 {[%clk 0:04:54.3]} 7... Be7 {[%clk 0:04:53.5]} 8. O-O {[%clk 0:04:53.7]}
8... O-O {[%clk 0:04:53]} 9. Kh1 {[%clk 0:04:49.3]} 9... Nc6 {[%clk 0:04:51.1]}
10. Be3 {[%clk 0:04:47.5]} 10... d5 {[%clk 0:04:49.1]} 11. e5 {[%clk 0:04:42.8]}
11... Nd7 {[%clk 0:04:46.7]} 12. Rf3 {[%clk 0:04:36.4]} 12... Nxd4 {[%clk
0:04:44.4]} 13. Bxd4 {[%clk 0:04:35.2]} 13... Nc5 {[%clk 0:04:43.7]} 14. Rh3
{[%clk 0:04:33.8]} 14... Nxd3 {[%clk 0:04:41.6]} 15. Qxd3 {[%clk 0:04:31.7]}
15... h6 {[%clk 0:04:39.8]} 16. g4 {[%clk 0:04:28.4]} 16... b5 {[%clk
0:04:36.3]} 17. g5 {[%clk 0:04:27.3]} 1-0

[Event "Live Chess"]
[Site "Chess.com"]
[Date "2023.05.21"]
[Round "-"]
[White "elephantgerrald"]
[Black "Biranidun"]
[Result "0-1"]
[WhiteElo "369"]
[BlackElo "2553"]
[TimeControl "300"]
[EndTime "23:02:48 PDT"]
[Termination "Biranidun won by checkmate"]

1. e4 {[%clk 0:04:51.8]} 1... c5 {[%clk 0:04:59.1]} 2. Bc4 {[%clk 0:04:37.8]}
2... e6 {[%clk 0:04:58]} 3. Nf3 {[%clk 0:04:32.7]} 3... d5 {[%clk 0:04:56.7]} 4.
exd5 {[%clk 0:04:30.6]} 4... exd5 {[%clk 0:04:56.6]} 5. Bb5+ {[%clk 0:04:27.2]}
5... Bd7 {[%clk 0:04:56]} 6. Bxd7+ {[%clk 0:04:25.3]} 6... Qxd7 {[%clk
0:04:55.9]} 7. Qe2+ {[%clk 0:04:23]} 7... Qe6 {[%clk 0:04:52.2]} 8. Qxe6+ {[%clk
0:04:20.1]} 8... fxe6 {[%clk 0:04:52.1]} 9. O-O {[%clk 0:04:12.7]} 9... Nc6
{[%clk 0:04:41.5]} 10. Re1 {[%clk 0:04:10.3]} 10... Kd7 {[%clk 0:04:40.6]} 11.
Ng5 {[%clk 0:04:04.2]} 11... Nd8 {[%clk 0:04:22.6]} 12. d3 {[%clk 0:03:55]}
12... h6 {[%clk 0:04:21.4]} 13. Nf3 {[%clk 0:03:50.5]} 13... Nc6 {[%clk
0:04:20.5]} 14. Nc3 {[%clk 0:03:46.5]} 14... Bd6 {[%clk 0:04:19]} 15. Be3 {[%clk
0:03:39.6]} 15... d4 {[%clk 0:04:16.9]} 16. Bxd4 {[%clk 0:03:37.8]} 16... cxd4
{[%clk 0:04:16]} 17. Ne4 {[%clk 0:03:24.3]} 17... Nf6 {[%clk 0:04:12]} 18. Nxd6
{[%clk 0:03:20.8]} 18... Kxd6 {[%clk 0:04:11.3]} 19. c4 {[%clk 0:03:14.8]} 19...
a5 {[%clk 0:04:05.8]} 20. Re2 {[%clk 0:03:04.5]} 20... e5 {[%clk 0:04:05.2]} 21.
Rae1 {[%clk 0:02:57.6]} 21... Rae8 {[%clk 0:04:04.8]} 22. a3 {[%clk 0:02:53.4]}
22... a4 {[%clk 0:04:03.5]} 23. Rc1 {[%clk 0:02:42.2]} 23... Nd7 {[%clk
0:04:02.1]} 24. Nh4 {[%clk 0:02:28.1]} 24... Rhf8 {[%clk 0:03:59]} 25. Ng6
{[%clk 0:02:23.5]} 25... Rf6 {[%clk 0:03:57.8]} 26. Nh4 {[%clk 0:02:13.3]} 26...
Nc5 {[%clk 0:03:57.1]} 27. Rb1 {[%clk 0:01:56.3]} 27... Nxd3 {[%clk 0:03:55.4]}
28. b4 {[%clk 0:01:49.8]} 28... axb3 {[%clk 0:03:53.7]} 29. Rxb3 {[%clk
0:01:47.1]} 29... Nc1 {[%clk 0:03:53.2]} 30. c5+ {[%clk 0:01:38.6]} 30... Kd5
{[%clk 0:03:50.9]} 31. Rxb7 {[%clk 0:01:16.5]} 31... Nxe2+ {[%clk 0:03:49.5]}
32. Kh1 {[%clk 0:01:14.5]} 32... Rxf2 {[%clk 0:03:48]} 33. h3 {[%clk 0:01:12.4]}
33... d3 {[%clk 0:03:40]} 34. Rd7+ {[%clk 0:01:10.5]} 34... Kc4 {[%clk
0:03:38.8]} 35. Nf3 {[%clk 0:01:07.2]} 35... Ned4 {[%clk 0:03:37]} 36. Nxd4
{[%clk 0:01:02]} 36... exd4 {[%clk 0:03:36.9]} 37. a4 {[%clk 0:00:59.2]} 37...
d2 {[%clk 0:03:34.6]} 38. a5 {[%clk 0:00:55.2]} 38... d1=Q+ {[%clk 0:03:33.8]}
39. Kh2 {[%clk 0:00:53.3]} 39... Ree2 {[%clk 0:03:32.8]} 40. Kg3 {[%clk
0:00:51.5]} 40... Rxg2+ {[%clk 0:03:32.1]} 41. Kh4 {[%clk 0:00:50.2]} 41... Re4#
{[%clk 0:03:31.3]} 0-1

[Event "Live Chess"]
[Site "Chess.com"]
[Date "2023.05.21"]
[Round "-"]
[White "omisoc"]
[Black "mirandaasilva"]
[Result "1-0"]
[WhiteElo "2165"]
[BlackElo "1652"]
[TimeControl "300"]
[EndTime "23:02:58 PDT"]
[Termination "omisoc won by checkmate"]

1. Nf3 {[%clk 0:04:56.6]} 1... e6 {[%clk 0:04:58.1]} 2. e3 {[%clk 0:04:53.1]}
2... c5 {[%clk 0:04:57.5]} 3. c4 {[%clk 0:04:50.2]} 3... b6 {[%clk 0:04:56.5]}
4. b3 {[%clk 0:04:47.6]} 4... Nf6 {[%clk 0:04:55.8]} 5. Bb2 {[%clk 0:04:46.6]}
5... d5 {[%clk 0:04:54.5]} 6. Be2 {[%clk 0:04:43.9]} 6... Bb7 {[%clk 0:04:51.9]}
7. O-O {[%clk 0:04:42.7]} 7... Nc6 {[%clk 0:04:50.3]} 8. cxd5 {[%clk 0:04:41.4]}
8... Nxd5 {[%clk 0:04:39.4]} 9. Nc3 {[%clk 0:04:38.6]} 9... e5 {[%clk
0:04:15.8]} 10. Nxd5 {[%clk 0:04:33.1]} 10... Qxd5 {[%clk 0:04:14.1]} 11. Bc4
{[%clk 0:04:32]} 11... Qd6 {[%clk 0:04:11.6]} 12. Ng5 {[%clk 0:04:25.7]} 12...
Nd8 {[%clk 0:03:54.8]} 13. d4 {[%clk 0:04:18.6]} 13... e4 {[%clk 0:03:42.3]} 14.
dxc5 {[%clk 0:04:13.1]} 14... Qxd1 {[%clk 0:03:42.2]} 15. Rfxd1 {[%clk
0:04:08.4]} 15... Be7 {[%clk 0:03:12.5]} 16. Rxd8+ {[%clk 0:03:53.9]} 16... Rxd8
{[%clk 0:03:09.8]} 17. Nxf7 {[%clk 0:03:43.4]} 17... Rf8 {[%clk 0:03:08.2]} 18.
Nxd8 {[%clk 0:03:39.8]} 18... Bxd8 {[%clk 0:03:06.8]} 19. Bxg7 {[%clk
0:03:36.5]} 19... Rf5 {[%clk 0:03:03]} 20. cxb6 {[%clk 0:03:31.7]} 20... axb6
{[%clk 0:03:00.4]} 21. Rd1 {[%clk 0:03:20.8]} 21... Be7 {[%clk 0:02:55.8]} 22.
Bd4 {[%clk 0:03:16]} 22... b5 {[%clk 0:02:35.9]} 23. Be6 {[%clk 0:03:13.8]}
23... Rh5 {[%clk 0:02:32.3]} 24. h3 {[%clk 0:03:04]} 24... Rh6 {[%clk
0:02:15.6]} 25. Bf5 {[%clk 0:02:52]} 25... Rh5 {[%clk 0:02:03.9]} 26. Bg4 {[%clk
0:02:44.5]} 26... Rh6 {[%clk 0:02:02]} 27. Be2 {[%clk 0:02:42.6]} 27... Bc6
{[%clk 0:01:58.1]} 28. Rc1 {[%clk 0:02:36.8]} 28... Kf8 {[%clk 0:01:52.1]} 29.
a4 {[%clk 0:02:24.8]} 29... bxa4 {[%clk 0:01:39.2]} 30. bxa4 {[%clk 0:02:24.7]}
30... Bxa4 {[%clk 0:01:28.7]} 31. Rc8+ {[%clk 0:02:22.3]} 31... Kf7 {[%clk
0:01:01.1]} 32. Bc4+ {[%clk 0:02:20.5]} 32... Kg6 {[%clk 0:00:54.4]} 33. Rg8+
{[%clk 0:02:16.6]} 33... Kh5 {[%clk 0:00:37.1]} 34. Be2+ {[%clk 0:02:05.2]}
34... Kh4 {[%clk 0:00:30.2]} 35. g3+ {[%clk 0:02:03.3]} 35... Kxh3 {[%clk
0:00:22.2]} 36. Bf1# {[%clk 0:02:01.8]} 1-0

[Event "Live Chess"]
[Site "Chess.com"]
[Date "2023.05.21"]
[Round "-"]
[White "WilliamofOrange16th"]
[Black "MaximKris"]
[Result "0-1"]
[WhiteElo "1832"]
[BlackElo "1865"]
[TimeControl "300"]
[EndTime "23:03:06 PDT"]
[Termination "MaximKris won by checkmate"]

1. b3 {[%clk 0:04:54.2]} 1... d5 {[%clk 0:04:56.8]} 2. Bb2 {[%clk 0:04:53.3]}
2... Nc6 {[%clk 0:04:55.4]} 3. e3 {[%clk 0:04:52.7]} 3... Nf6 {[%clk 0:04:54.5]}
4. Bb5 {[%clk 0:04:50]} 4... Bd7 {[%clk 0:04:50.6]} 5. Nf3 {[%clk 0:04:48.9]}
5... a6 {[%clk 0:04:49.4]} 6. Bxc6 {[%clk 0:04:47.7]} 6... Bxc6 {[%clk
0:04:49.3]} 7. Ne5 {[%clk 0:04:47.1]} 7... e6 {[%clk 0:04:47]} 8. O-O {[%clk
0:04:44.6]} 8... Bd6 {[%clk 0:04:46]} 9. d3 {[%clk 0:04:43.3]} 9... Bxe5 {[%clk
0:04:44.7]} 10. Bxe5 {[%clk 0:04:41.8]} 10... Qe7 {[%clk 0:04:43.4]} 11. h3
{[%clk 0:04:30]} 11... O-O-O {[%clk 0:04:41.8]} 12. Qe2 {[%clk 0:04:25.4]} 12...
h5 {[%clk 0:04:39]} 13. Nd2 {[%clk 0:04:18.1]} 13... g5 {[%clk 0:04:34.3]} 14.
e4 {[%clk 0:04:13.3]} 14... dxe4 {[%clk 0:04:32.8]} 15. Nxe4 {[%clk 0:04:12.6]}
15... Bxe4 {[%clk 0:04:26]} 16. dxe4 {[%clk 0:04:12.2]} 16... g4 {[%clk
0:04:22.2]} 17. h4 {[%clk 0:04:10.4]} 17... Rhg8 {[%clk 0:04:17.5]} 18. g3
{[%clk 0:04:08.8]} 18... Nd7 {[%clk 0:04:12.2]} 19. Bf4 {[%clk 0:04:03.4]} 19...
f5 {[%clk 0:04:09.6]} 20. exf5 {[%clk 0:04:01.9]} 20... e5 {[%clk 0:04:06.7]}
21. Bg5 {[%clk 0:04:00.1]} 21... Rxg5 {[%clk 0:04:04.8]} 22. hxg5 {[%clk
0:04:00]} 22... Qxg5 {[%clk 0:04:04.2]} 23. Kg2 {[%clk 0:03:48]} 23... Qxf5
{[%clk 0:03:46]} 24. Rad1 {[%clk 0:03:43.1]} 24... Rh8 {[%clk 0:03:37.9]} 25.
Rh1 {[%clk 0:03:41]} 25... Nc5 {[%clk 0:03:33.5]} 26. Rde1 {[%clk 0:03:33.8]}
26... e4 {[%clk 0:03:29.7]} 27. Qe3 {[%clk 0:03:30.8]} 27... Nd7 {[%clk
0:03:27.1]} 28. Qxe4 {[%clk 0:03:29.7]} 28... Qf7 {[%clk 0:03:17.5]} 29. f4
{[%clk 0:03:20.1]} 29... gxf3+ {[%clk 0:03:12.2]} 30. Qxf3 {[%clk 0:03:19.3]}
30... Qg6 {[%clk 0:03:09.1]} 31. Re2 {[%clk 0:03:10.2]} 31... Rf8 {[%clk
0:03:02.1]} 32. Qd3 {[%clk 0:03:05.6]} 32... Qc6+ {[%clk 0:02:56.8]} 33. Qe4
{[%clk 0:03:04.3]} 33... Qf6 {[%clk 0:02:40.4]} 34. c4 {[%clk 0:02:48.4]} 34...
Kb8 {[%clk 0:02:38.4]} 35. b4 {[%clk 0:02:37.2]} 35... Rg8 {[%clk 0:01:59.8]}
36. Rxh5 {[%clk 0:02:28.1]} 36... Qc3 {[%clk 0:01:57.3]} 37. c5 {[%clk
0:02:22.8]} 37... Qxg3+ {[%clk 0:01:51.2]} 38. Kf1 {[%clk 0:02:17.9]} 38... Qg1#
{[%clk 0:01:50.2]} 0-1

[Event "Live Chess"]
[Site "Chess.com"]
[Date "2023.05.21"]
[Round "-"]
[White "Nazarenko_vital"]
[Black "JamesWallman"]
[Result "1-0"]
[WhiteElo "1640"]
[BlackElo "757"]
[TimeControl "300"]
[EndTime "23:03:39 PDT"]
[Termination "Nazarenko_vital won by checkmate"]

1. e4 {[%clk 0:04:54.5]} 1... e5 {[%clk 0:04:56.5]} 2. Nf3 {[%clk 0:04:53.5]}
2... Nc6 {[%clk 0:04:53.8]} 3. d4 {[%clk 0:04:52.3]} 3... exd4 {[%clk
0:04:50.8]} 4. Nxd4 {[%clk 0:04:51.2]} 4... Nxd4 {[%clk 0:04:48.5]} 5. Qxd4
{[%clk 0:04:50.3]} 5... d6 {[%clk 0:04:46.7]} 6. Nc3 {[%clk 0:04:48.8]} 6... Be7
{[%clk 0:04:44.7]} 7. Be3 {[%clk 0:04:43.9]} 7... Nf6 {[%clk 0:04:41.9]} 8. Be2
{[%clk 0:04:39]} 8... O-O {[%clk 0:04:36]} 9. h3 {[%clk 0:04:36.4]} 9... h6
{[%clk 0:04:29.7]} 10. g4 {[%clk 0:04:31]} 10... c5 {[%clk 0:04:25.8]} 11. Qd2
{[%clk 0:04:23.2]} 11... Bd7 {[%clk 0:04:21.9]} 12. O-O-O {[%clk 0:04:21.4]}
12... Rc8 {[%clk 0:04:14.9]} 13. g5 {[%clk 0:04:19.6]} 13... Nh7 {[%clk
0:04:07.2]} 14. gxh6 {[%clk 0:04:09.6]} 14... gxh6 {[%clk 0:04:03.6]} 15. Bxh6
{[%clk 0:04:05.1]} 15... Re8 {[%clk 0:04:01.5]} 16. Rhg1+ {[%clk 0:04:03.4]}
16... Kh8 {[%clk 0:03:56.9]} 17. Bg7+ {[%clk 0:03:54.4]} 17... Kg8 {[%clk
0:03:50.4]} 18. Bf6+ {[%clk 0:03:51]} 18... Kf8 {[%clk 0:03:45.5]} 19. Qh6#
{[%clk 0:03:49.5]} 1-0